[Event "Late-Titled-Tuesday-Blitz-June-25-2024"]
[Site "Chess.com"]
[Date "2024.06.25"]
[Round "6"]
[White "Quattroporte300"]
[Black "enriquebutti"]
[Result "1-0"]
[WhiteElo "2437"]
[BlackElo "2198"]
[TimeControl "180+1"]
[EndTime "15:04:22 PDT"]
[Termination "Quattroporte300 won by resignation"]

1. e4 {[%clk 0:03:00.9]} 1... c5 {[%clk 0:02:59.3]} 2. Nc3 {[%clk 0:03:00.1]}
2... d6 {[%clk 0:02:56.9]} 3. d4 {[%clk 0:02:59.7]} 3... cxd4 {[%clk 0:02:56.2]}
4. Qxd4 {[%clk 0:03:00.6]} 4... Bd7 {[%clk 0:02:51.1]} 5. b3 {[%clk 0:02:58.6]}
5... Nc6 {[%clk 0:02:50.5]} 6. Qd2 {[%clk 0:02:58.2]} 6... g6 {[%clk 0:02:44.6]}
7. Bb2 {[%clk 0:02:58.4]} 7... Bg7 {[%clk 0:02:42.9]} 8. O-O-O {[%clk
0:02:57.8]} 8... Rc8 {[%clk 0:02:41.2]} 9. f3 {[%clk 0:02:54.3]} 9... Qa5 {[%clk
0:02:36.4]} 10. Kb1 {[%clk 0:02:50.8]} 10... Be6 {[%clk 0:02:25.2]} 11. Nge2
{[%clk 0:02:48.8]} 11... Nf6 {[%clk 0:02:23.1]} 12. g4 {[%clk 0:02:46.1]} 12...
O-O {[%clk 0:02:20.7]} 13. h4 {[%clk 0:02:45.7]} 13... Rfd8 {[%clk 0:02:15.3]}
14. h5 {[%clk 0:02:42.7]} 14... b5 {[%clk 0:01:53.5]} 15. Nf4 {[%clk 0:02:20.9]}
15... b4 {[%clk 0:01:48.3]} 16. Na4 {[%clk 0:02:16.5]} 16... Bxg4 {[%clk
0:01:36.9]} 17. fxg4 {[%clk 0:02:13.4]} 17... Nxe4 {[%clk 0:01:36]} 18. Qe3
{[%clk 0:02:12.5]} 18... Nc3+ {[%clk 0:01:30.9]} 19. Bxc3 {[%clk 0:02:09.4]}
19... bxc3 {[%clk 0:01:30.1]} 20. hxg6 {[%clk 0:02:03.9]} 20... hxg6 {[%clk
0:01:28.8]} 21. Nxg6 {[%clk 0:01:29.6]} 21... Rb8 {[%clk 0:01:11.2]} 22. Ka1
{[%clk 0:01:12.3]} 22... Nb4 {[%clk 0:01:02]} 23. Nxe7+ {[%clk 0:01:10.3]} 23...
Kf8 {[%clk 0:01:01.1]} 24. Bd3 {[%clk 0:01:05.8]} 24... Re8 {[%clk 0:00:40.5]}
25. Rde1 {[%clk 0:00:57.1]} 25... Nxd3 {[%clk 0:00:31.1]} 26. Qxd3 {[%clk
0:00:50]} 26... Qb4 {[%clk 0:00:21.2]} 27. Nf5 {[%clk 0:00:39.1]} 27... Qa3
{[%clk 0:00:19.5]} 28. Qxd6+ {[%clk 0:00:30.4]} 28... Kg8 {[%clk 0:00:17.8]} 29.
Qxa3 {[%clk 0:00:29.8]} 1-0

[Event "Late-Titled-Tuesday-Blitz-June-25-2024"]
[Site "Chess.com"]
[Date "2024.06.25"]
[Round "6"]
[White "Statham_01"]
[Black "dropstoneDP"]
[Result "0-1"]
[WhiteElo "2713"]
[BlackElo "3013"]
[TimeControl "180+1"]
[EndTime "15:04:25 PDT"]
[Termination "dropstoneDP won by resignation"]

1. e4 {[%clk 0:03:00.9]} 1... e5 {[%clk 0:02:56.1]} 2. Nf3 {[%clk 0:03:00.6]}
2... Nf6 {[%clk 0:02:56.6]} 3. Nc3 {[%clk 0:02:59.6]} 3... Nc6 {[%clk
0:02:56.4]} 4. d4 {[%clk 0:02:54.7]} 4... exd4 {[%clk 0:02:57.3]} 5. Nd5 {[%clk
0:02:54.7]} 5... Nb4 {[%clk 0:02:56.5]} 6. Nxf6+ {[%clk 0:02:50.4]} 6... Qxf6
{[%clk 0:02:56.1]} 7. a3 {[%clk 0:02:46.8]} 7... Nc6 {[%clk 0:02:56.3]} 8. Bc4
{[%clk 0:02:42.8]} 8... d6 {[%clk 0:02:53.8]} 9. Bg5 {[%clk 0:02:42.6]} 9... Qg6
{[%clk 0:02:53.4]} 10. O-O {[%clk 0:02:35.7]} 10... Bg4 {[%clk 0:02:51.3]} 11.
Bh4 {[%clk 0:02:21.6]} 11... Be7 {[%clk 0:02:49.8]} 12. Bg3 {[%clk 0:02:11.2]}
12... O-O-O {[%clk 0:02:42.2]} 13. Be2 {[%clk 0:01:58.1]} 13... h5 {[%clk
0:02:28.8]} 14. Nxd4 {[%clk 0:01:47.2]} 14... Nxd4 {[%clk 0:02:26.6]} 15. Bxg4+
{[%clk 0:01:35.9]} 15... Qxg4 {[%clk 0:02:25.7]} 16. Qxd4 {[%clk 0:01:36.4]}
16... h4 {[%clk 0:02:20.9]} 17. f3 {[%clk 0:01:26.1]} 17... Qg6 {[%clk
0:02:20.8]} 18. Bf2 {[%clk 0:01:23.4]} 18... h3 {[%clk 0:02:21.3]} 19. g3 {[%clk
0:01:22.2]} 19... a6 {[%clk 0:02:13.2]} 20. c4 {[%clk 0:01:19.6]} 20... Qh5
{[%clk 0:02:09.3]} 21. Qd3 {[%clk 0:01:14.3]} 21... Bf6 {[%clk 0:02:01.5]} 22.
Rab1 {[%clk 0:01:07.2]} 22... Rhe8 {[%clk 0:01:39.8]} 23. b4 {[%clk 0:01:06.4]}
23... Qe5 {[%clk 0:01:36.8]} 24. Rb3 {[%clk 0:01:01.8]} 24... g5 {[%clk
0:01:33.3]} 25. g4 {[%clk 0:00:44]} 25... Qe6 {[%clk 0:01:31.9]} 26. a4 {[%clk
0:00:41]} 26... Be5 {[%clk 0:01:27.9]} 27. a5 {[%clk 0:00:35.7]} 27... Kd7
{[%clk 0:01:15.5]} 28. b5 {[%clk 0:00:33.6]} 28... Ke7 {[%clk 0:01:12.9]} 29.
bxa6 {[%clk 0:00:30.2]} 29... bxa6 {[%clk 0:01:13.8]} 30. Rb7 {[%clk 0:00:25.7]}
30... Kf8 {[%clk 0:01:05.6]} 31. Rxc7 {[%clk 0:00:21.4]} 31... d5 {[%clk
0:01:04.4]} 32. exd5 {[%clk 0:00:12.3]} 32... Bxc7 {[%clk 0:01:02.3]} 33. Qh7
{[%clk 0:00:07.8]} 33... Qe5 {[%clk 0:00:58.6]} 34. Bc5+ {[%clk 0:00:03.9]}
34... Bd6 {[%clk 0:00:58.1]} 35. Qh6+ {[%clk 0:00:04.4]} 35... Kg8 {[%clk
0:00:57.5]} 36. Bxd6 {[%clk 0:00:03.1]} 36... Rxd6 {[%clk 0:00:58.4]} 37. Qg6+
{[%clk 0:00:02.8]} 0-1

[Event "Late-Titled-Tuesday-Blitz-June-25-2024"]
[Site "Chess.com"]
[Date "2024.06.25"]
[Round "6"]
[White "Orest_Vovk"]
[Black "jbking07"]
[Result "1-0"]
[WhiteElo "2556"]
[BlackElo "2395"]
[TimeControl "180+1"]
[EndTime "15:04:28 PDT"]
[Termination "Orest_Vovk won on time"]

1. e4 {[%clk 0:02:59.1]} 1... c5 {[%clk 0:02:59.5]} 2. Be2 {[%clk 0:02:55.2]}
2... d5 {[%clk 0:02:55.6]} 3. d3 {[%clk 0:02:55.4]} 3... g6 {[%clk 0:02:47.5]}
4. f4 {[%clk 0:02:49.2]} 4... Bg7 {[%clk 0:02:39.8]} 5. Nf3 {[%clk 0:02:49]}
5... Nc6 {[%clk 0:02:34.5]} 6. c3 {[%clk 0:02:46.4]} 6... dxe4 {[%clk 0:02:23]}
7. dxe4 {[%clk 0:02:45.7]} 7... Qxd1+ {[%clk 0:02:18.9]} 8. Bxd1 {[%clk
0:02:46.6]} 8... e5 {[%clk 0:02:18.3]} 9. Ba4 {[%clk 0:02:43]} 9... Bd7 {[%clk
0:02:10]} 10. O-O {[%clk 0:02:42.3]} 10... Nge7 {[%clk 0:02:00.9]} 11. Na3
{[%clk 0:02:32.4]} 11... a6 {[%clk 0:01:58.5]} 12. Nc4 {[%clk 0:02:30.9]} 12...
b5 {[%clk 0:01:47.6]} 13. Nd6+ {[%clk 0:02:30.7]} 13... Kf8 {[%clk 0:01:44.6]}
14. Bc2 {[%clk 0:02:27.2]} 14... Nc8 {[%clk 0:01:28.6]} 15. Nb7 {[%clk
0:02:20.2]} 15... c4 {[%clk 0:01:24]} 16. a4 {[%clk 0:02:15.2]} 16... Nb6 {[%clk
0:01:19.9]} 17. Nc5 {[%clk 0:02:02.4]} 17... Ke7 {[%clk 0:01:13.9]} 18. Be3
{[%clk 0:01:51]} 18... Bg4 {[%clk 0:00:46.1]} 19. h3 {[%clk 0:01:24.4]} 19...
Bxf3 {[%clk 0:00:45.9]} 20. Rxf3 {[%clk 0:01:25.3]} 20... exf4 {[%clk
0:00:38.7]} 21. Bxf4 {[%clk 0:01:25.1]} 21... Ne5 {[%clk 0:00:35.5]} 22. Rf2
{[%clk 0:01:21.8]} 22... Rhd8 {[%clk 0:00:29]} 23. Bg5+ {[%clk 0:01:12.8]} 23...
f6 {[%clk 0:00:26.8]} 24. Bf4 {[%clk 0:01:07.7]} 24... Nbd7 {[%clk 0:00:23.3]}
25. Nxd7 {[%clk 0:01:04.1]} 25... Nxd7 {[%clk 0:00:19.9]} 26. Rd2 {[%clk
0:00:48.6]} 26... Nc5 {[%clk 0:00:13.4]} 27. axb5 {[%clk 0:00:45.9]} 27... axb5
{[%clk 0:00:11.3]} 28. Rxa8 {[%clk 0:00:45]} 28... Rxa8 {[%clk 0:00:07.3]} 29.
Bd6+ {[%clk 0:00:44.9]} 29... Ke6 {[%clk 0:00:03.4]} 30. Bxc5 {[%clk 0:00:45.8]}
30... Rc8 {[%clk 0:00:01.8]} 31. Bb4 {[%clk 0:00:43.3]} 1-0

[Event "Late-Titled-Tuesday-Blitz-June-25-2024"]
[Site "Chess.com"]
[Date "2024.06.25"]
[Round "6"]
[White "AlphaPerseii"]
[Black "Piriflillo"]
[Result "0-1"]
[WhiteElo "2379"]
[BlackElo "2525"]
[TimeControl "180+1"]
[EndTime "15:04:32 PDT"]
[Termination "Piriflillo won by resignation"]

1. d4 {[%clk 0:02:58.8]} 1... d5 {[%clk 0:02:58.5]} 2. c4 {[%clk 0:02:59.2]}
2... c5 {[%clk 0:02:59]} 3. dxc5 {[%clk 0:02:53.4]} 3... d4 {[%clk 0:02:47.8]}
4. Nf3 {[%clk 0:02:49.6]} 4... Nc6 {[%clk 0:02:47.5]} 5. e3 {[%clk 0:02:40.2]}
5... Bg4 {[%clk 0:02:12.7]} 6. h3 {[%clk 0:02:26.4]} 6... Bxf3 {[%clk
0:02:09.3]} 7. Qxf3 {[%clk 0:02:25.4]} 7... e5 {[%clk 0:02:02.7]} 8. Be2 {[%clk
0:01:54.5]} 8... Bxc5 {[%clk 0:01:54.1]} 9. O-O {[%clk 0:01:49.9]} 9... Nf6
{[%clk 0:01:53.6]} 10. e4 {[%clk 0:01:36.7]} 10... O-O {[%clk 0:01:48.6]} 11.
Rd1 {[%clk 0:01:25.4]} 11... Qc7 {[%clk 0:01:39.6]} 12. Nd2 {[%clk 0:01:11.2]}
12... d3 {[%clk 0:01:25.3]} 13. Bxd3 {[%clk 0:00:55.7]} 13... Nd4 {[%clk
0:01:25.2]} 14. Qg3 {[%clk 0:00:54.1]} 14... Nh5 {[%clk 0:01:23.1]} 15. Qg5
{[%clk 0:00:40.5]} 15... Nf4 {[%clk 0:01:20.4]} 16. Nb3 {[%clk 0:00:29.3]} 16...
Nxh3+ {[%clk 0:01:14.2]} 17. gxh3 {[%clk 0:00:25.8]} 17... Nf3+ {[%clk
0:01:14.1]} 18. Kg2 {[%clk 0:00:25.6]} 18... Nxg5 {[%clk 0:01:12.9]} 19. Bxg5
{[%clk 0:00:26.5]} 19... Be7 {[%clk 0:01:11.1]} 20. Be3 {[%clk 0:00:26.3]} 20...
Rfd8 {[%clk 0:01:08.4]} 21. c5 {[%clk 0:00:20.4]} 21... Qc6 {[%clk 0:00:54.4]}
22. f3 {[%clk 0:00:19.4]} 22... Bh4 {[%clk 0:00:52.2]} 23. Bc4 {[%clk
0:00:19.4]} 23... Qg6+ {[%clk 0:00:51.5]} 24. Kf1 {[%clk 0:00:12.4]} 24... Qg3
{[%clk 0:00:49]} 25. Nd2 {[%clk 0:00:06.6]} 25... Qxh3+ {[%clk 0:00:45.1]} 26.
Kg1 {[%clk 0:00:07.1]} 26... Bg3 {[%clk 0:00:35.9]} 27. Nf1 {[%clk 0:00:04.3]}
27... Bf4 {[%clk 0:00:34.1]} 28. Bxf4 {[%clk 0:00:04.8]} 28... exf4 {[%clk
0:00:33.9]} 29. Kf2 {[%clk 0:00:05.4]} 29... Qh4+ {[%clk 0:00:33.2]} 30. Kg2
{[%clk 0:00:05.8]} 30... Qg5+ {[%clk 0:00:32.7]} 31. Kf2 {[%clk 0:00:05.7]}
31... Qxc5+ {[%clk 0:00:33.3]} 32. Kg2 {[%clk 0:00:05.8]} 32... Qxc4 {[%clk
0:00:33.8]} 0-1

[Event "Late-Titled-Tuesday-Blitz-June-25-2024"]
[Site "Chess.com"]
[Date "2024.06.25"]
[Round "6"]
[White "djano"]
[Black "Jahonas"]
[Result "1-0"]
[WhiteElo "2580"]
[BlackElo "2439"]
[TimeControl "180+1"]
[EndTime "15:04:33 PDT"]
[Termination "djano won by checkmate"]

1. e4 {[%clk 0:03:00.9]} 1... c6 {[%clk 0:02:59.3]} 2. d3 {[%clk 0:03:01.2]}
2... d5 {[%clk 0:02:59.6]} 3. Bf4 {[%clk 0:03:00.8]} 3... dxe4 {[%clk
0:02:56.8]} 4. Nc3 {[%clk 0:03:01.1]} 4... Nf6 {[%clk 0:02:55.9]} 5. Qd2 {[%clk
0:02:53.6]} 5... e6 {[%clk 0:02:53.8]} 6. a3 {[%clk 0:02:44.8]} 6... Nd5 {[%clk
0:02:44.3]} 7. Nxe4 {[%clk 0:02:42.3]} 7... Nxf4 {[%clk 0:02:41.9]} 8. Qxf4
{[%clk 0:02:43.2]} 8... Be7 {[%clk 0:02:40.1]} 9. Nf3 {[%clk 0:02:39.7]} 9...
Nd7 {[%clk 0:02:38.3]} 10. d4 {[%clk 0:02:37.1]} 10... Nf6 {[%clk 0:02:37.8]}
11. Bd3 {[%clk 0:02:36.9]} 11... Nxe4 {[%clk 0:02:36.9]} 12. Bxe4 {[%clk
0:02:30.2]} 12... Bf6 {[%clk 0:02:36.6]} 13. O-O-O {[%clk 0:02:29]} 13... h6
{[%clk 0:02:35.2]} 14. Kb1 {[%clk 0:02:27.2]} 14... Bd7 {[%clk 0:02:29.9]} 15.
Ne5 {[%clk 0:02:21]} 15... Qc7 {[%clk 0:02:15.6]} 16. Qg3 {[%clk 0:02:21.1]}
16... Rf8 {[%clk 0:02:09.8]} 17. f4 {[%clk 0:01:51.3]} 17... O-O-O {[%clk
0:02:06.2]} 18. Rhe1 {[%clk 0:01:49.4]} 18... Kb8 {[%clk 0:01:20]} 19. Rd3
{[%clk 0:01:49.3]} 19... Bc8 {[%clk 0:01:11.3]} 20. Red1 {[%clk 0:01:49.3]}
20... g6 {[%clk 0:01:05.2]} 21. Qf3 {[%clk 0:01:47.7]} 21... Rd6 {[%clk
0:00:39.9]} 22. Nc4 {[%clk 0:01:35.2]} 22... Rd7 {[%clk 0:00:36]} 23. c3 {[%clk
0:01:20.2]} 23... Rfd8 {[%clk 0:00:35.6]} 24. b4 {[%clk 0:01:20.4]} 24... Bg7
{[%clk 0:00:27.5]} 25. Qe3 {[%clk 0:01:19.5]} 25... b6 {[%clk 0:00:21.7]} 26. g3
{[%clk 0:01:17.1]} 26... Ba6 {[%clk 0:00:20]} 27. Nb2 {[%clk 0:01:06.8]} 27...
Bxd3+ {[%clk 0:00:17.8]} 28. Nxd3 {[%clk 0:01:07.7]} 28... c5 {[%clk 0:00:18.3]}
29. bxc5 {[%clk 0:01:04.3]} 29... bxc5 {[%clk 0:00:11.9]} 30. Nxc5 {[%clk
0:01:00.2]} 30... Qxc5 {[%clk 0:00:11.5]} 31. dxc5 {[%clk 0:01:01.1]} 31...
Rxd1+ {[%clk 0:00:11.7]} 32. Kc2 {[%clk 0:01:01.8]} 32... R1d2+ {[%clk
0:00:10.6]} 33. Kb3 {[%clk 0:00:59.1]} 33... Kc7 {[%clk 0:00:10.5]} 34. Ka4
{[%clk 0:00:52.4]} 34... Rb2 {[%clk 0:00:09.3]} 35. c6 {[%clk 0:00:50.9]} 35...
Rb6 {[%clk 0:00:09.2]} 36. Qc5 {[%clk 0:00:47.5]} 36... Bf8 {[%clk 0:00:06.7]}
37. Qa5 {[%clk 0:00:45.8]} 37... Rb8 {[%clk 0:00:05.4]} 38. Qxa7+ {[%clk
0:00:45.5]} 38... Kd6 {[%clk 0:00:05.7]} 39. Qd7+ {[%clk 0:00:44.4]} 39... Kc5
{[%clk 0:00:03.6]} 40. Qd4# {[%clk 0:00:45.3]} 1-0

[Event "Late-Titled-Tuesday-Blitz-June-25-2024"]
[Site "Chess.com"]
[Date "2024.06.25"]
[Round "6"]
[White "kiwibobo"]
[Black "Gyulamiryan-koryun"]
[Result "1-0"]
[WhiteElo "2354"]
[BlackElo "1812"]
[TimeControl "180+1"]
[EndTime "15:04:34 PDT"]
[Termination "kiwibobo won on time"]

1. e4 {[%clk 0:03:00]} 1... e5 {[%clk 0:02:53.3]} 2. Nf3 {[%clk 0:03:00.4]} 2...
Nc6 {[%clk 0:02:52.5]} 3. Bb5 {[%clk 0:03:00.6]} 3... a6 {[%clk 0:02:51.3]} 4.
Ba4 {[%clk 0:03:00.6]} 4... Nf6 {[%clk 0:02:51.8]} 5. O-O {[%clk 0:03:00.9]}
5... Be7 {[%clk 0:02:52.2]} 6. d3 {[%clk 0:03:00.6]} 6... b5 {[%clk 0:02:51.9]}
7. Bb3 {[%clk 0:03:00.5]} 7... O-O {[%clk 0:02:52.5]} 8. a4 {[%clk 0:02:58.3]}
8... Bb7 {[%clk 0:02:49.6]} 9. Nc3 {[%clk 0:02:57.4]} 9... Na5 {[%clk 0:02:38]}
10. Bd5 {[%clk 0:02:50]} 10... c6 {[%clk 0:02:37.1]} 11. Ba2 {[%clk 0:02:47.4]}
11... d6 {[%clk 0:02:35.3]} 12. b4 {[%clk 0:02:46]} 12... Nd7 {[%clk 0:02:07]}
13. bxa5 {[%clk 0:02:45.8]} 13... Qxa5 {[%clk 0:02:06]} 14. Bd2 {[%clk
0:02:43.6]} 14... b4 {[%clk 0:02:04.6]} 15. Ne2 {[%clk 0:02:35.2]} 15... c5
{[%clk 0:01:56.6]} 16. c3 {[%clk 0:02:34.3]} 16... Bc6 {[%clk 0:01:40.5]} 17.
cxb4 {[%clk 0:02:31.5]} 17... cxb4 {[%clk 0:01:40.2]} 18. Bc4 {[%clk 0:02:30.5]}
18... Nb6 {[%clk 0:01:36.1]} 19. Bb3 {[%clk 0:02:25.4]} 19... Nd7 {[%clk
0:01:20.2]} 20. Qc2 {[%clk 0:02:18.8]} 20... Nc5 {[%clk 0:01:18.7]} 21. Qc4
{[%clk 0:02:14.5]} 21... Rab8 {[%clk 0:01:13]} 22. d4 {[%clk 0:02:11.2]} 22...
Nxb3 {[%clk 0:01:08.5]} 23. Qxb3 {[%clk 0:02:06.8]} 23... Bxe4 {[%clk
0:01:07.6]} 24. dxe5 {[%clk 0:02:03.9]} 24... Bxf3 {[%clk 0:01:04.4]} 25. Qxf3
{[%clk 0:02:04.8]} 25... Qxe5 {[%clk 0:01:04.1]} 26. Nf4 {[%clk 0:02:02.2]}
26... a5 {[%clk 0:01:02.8]} 27. Nd5 {[%clk 0:01:59.6]} 27... Bd8 {[%clk
0:00:51.6]} 28. Rfe1 {[%clk 0:01:53.9]} 28... Qd4 {[%clk 0:00:43.9]} 29. Bf4
{[%clk 0:01:50.8]} 29... b3 {[%clk 0:00:39.8]} 30. Bxd6 {[%clk 0:01:40.8]} 30...
b2 {[%clk 0:00:39.2]} 31. Rab1 {[%clk 0:01:35.7]} 31... Bg5 {[%clk 0:00:33]} 32.
Bxf8 {[%clk 0:01:32.8]} 32... Rxf8 {[%clk 0:00:32.9]} 33. Ne3 {[%clk 0:01:22.9]}
33... Bf6 {[%clk 0:00:23.3]} 34. Ng4 {[%clk 0:01:20.3]} 34... Bg5 {[%clk
0:00:19.2]} 35. Ne5 {[%clk 0:01:18]} 35... Bc1 {[%clk 0:00:12.5]} 36. Qd3 {[%clk
0:01:12.5]} 36... Qxa4 {[%clk 0:00:10]} 37. Nd7 {[%clk 0:01:04]} 37... Rd8
{[%clk 0:00:04.5]} 38. Nf6+ {[%clk 0:01:03.3]} 38... gxf6 {[%clk 0:00:03.5]} 39.
Qxd8+ {[%clk 0:01:04]} 39... Kg7 {[%clk 0:00:03.2]} 40. Qd3 {[%clk 0:01:02.9]}
1-0

[Event "Late-Titled-Tuesday-Blitz-June-25-2024"]
[Site "Chess.com"]
[Date "2024.06.25"]
[Round "6"]
[White "yaguigor"]
[Black "Jarming"]
[Result "0-1"]
[WhiteElo "2554"]
[BlackElo "2713"]
[TimeControl "180+1"]
[EndTime "15:04:40 PDT"]
[Termination "Jarming won by resignation"]

1. e4 {[%clk 0:03:00.9]} 1... c5 {[%clk 0:02:57.7]} 2. Nf3 {[%clk 0:02:59.8]}
2... d6 {[%clk 0:02:58.2]} 3. d4 {[%clk 0:03:00.2]} 3... cxd4 {[%clk 0:02:59.1]}
4. Nxd4 {[%clk 0:03:00.3]} 4... Nf6 {[%clk 0:02:58.9]} 5. Nc3 {[%clk 0:03:00.8]}
5... g6 {[%clk 0:02:59.8]} 6. Be3 {[%clk 0:02:59.8]} 6... Bg7 {[%clk 0:03:00.7]}
7. f3 {[%clk 0:03:00]} 7... O-O {[%clk 0:03:01.6]} 8. Qd2 {[%clk 0:03:00.4]}
8... Nc6 {[%clk 0:03:02.5]} 9. O-O-O {[%clk 0:03:00.5]} 9... d5 {[%clk
0:03:02.7]} 10. Qe1 {[%clk 0:03:01.2]} 10... e5 {[%clk 0:03:02.6]} 11. Nxc6
{[%clk 0:03:01.3]} 11... bxc6 {[%clk 0:03:03.5]} 12. exd5 {[%clk 0:03:01.7]}
12... Nxd5 {[%clk 0:03:03.5]} 13. Bc4 {[%clk 0:03:00.7]} 13... Be6 {[%clk
0:03:03.9]} 14. Kb1 {[%clk 0:03:00.3]} 14... Rb8 {[%clk 0:03:02.5]} 15. Ne4
{[%clk 0:02:54.4]} 15... Qc7 {[%clk 0:03:01.3]} 16. Bc5 {[%clk 0:02:52.7]} 16...
Rfd8 {[%clk 0:02:59.8]} 17. g4 {[%clk 0:02:50]} 17... h6 {[%clk 0:02:35.7]} 18.
h4 {[%clk 0:02:48.3]} 18... f5 {[%clk 0:02:34.9]} 19. gxf5 {[%clk 0:02:47.1]}
19... gxf5 {[%clk 0:02:35.8]} 20. Ng3 {[%clk 0:02:43.2]} 20... Qf7 {[%clk
0:02:35.7]} 21. Bb3 {[%clk 0:02:37.2]} 21... a5 {[%clk 0:02:08.3]} 22. Qxa5
{[%clk 0:02:33.8]} 22... Rd7 {[%clk 0:01:56.6]} 23. Rhg1 {[%clk 0:02:19]} 23...
Rb5 {[%clk 0:01:51.7]} 24. Qa8+ {[%clk 0:02:13.3]} 24... Kh7 {[%clk 0:01:48.3]}
25. Qxc6 {[%clk 0:02:11.6]} 25... Rbb7 {[%clk 0:01:46.1]} 26. Nh5 {[%clk
0:01:46.3]} 26... Bh8 {[%clk 0:01:15.2]} 27. Bf2 {[%clk 0:01:41.8]} 27... Rbc7
{[%clk 0:01:06.9]} 28. Qa6 {[%clk 0:01:40.1]} 28... Nc3+ {[%clk 0:00:51.3]} 29.
bxc3 {[%clk 0:01:36.9]} 29... Bxb3 {[%clk 0:00:51.4]} 30. axb3 {[%clk
0:01:10.5]} 30... Rxd1+ {[%clk 0:00:43.4]} 31. Rxd1 {[%clk 0:01:09.3]} 31...
Qxh5 {[%clk 0:00:44.3]} 32. Qd6 {[%clk 0:00:40.8]} 32... Rf7 {[%clk 0:00:31.4]}
33. Qe6 {[%clk 0:00:38.3]} 33... Bg7 {[%clk 0:00:30.5]} 34. Rd3 {[%clk
0:00:30.9]} 34... e4 {[%clk 0:00:29.3]} 35. fxe4 {[%clk 0:00:29.4]} 35... f4
{[%clk 0:00:29.5]} 36. Qd5 {[%clk 0:00:21.4]} 36... Qe2 {[%clk 0:00:27.7]} 37.
Qxf7 {[%clk 0:00:20.1]} 37... Qxf2 {[%clk 0:00:27.9]} 38. Qf6 {[%clk 0:00:19.9]}
38... Bxf6 {[%clk 0:00:27.5]} 0-1

[Event "Late-Titled-Tuesday-Blitz-June-25-2024"]
[Site "Chess.com"]
[Date "2024.06.25"]
[Round "6"]
[White "nindjaxx8"]
[Black "VD_coach"]
[Result "0-1"]
[WhiteElo "2713"]
[BlackElo "2566"]
[TimeControl "180+1"]
[EndTime "15:04:47 PDT"]
[Termination "VD_coach won on time"]

1. d4 {[%clk 0:03:00.9]} 1... Nf6 {[%clk 0:03:00]} 2. c4 {[%clk 0:03:00.9]} 2...
g6 {[%clk 0:03:00.4]} 3. Nc3 {[%clk 0:03:00.8]} 3... Bg7 {[%clk 0:03:01.1]} 4.
e4 {[%clk 0:03:01.3]} 4... O-O {[%clk 0:03:02]} 5. Be2 {[%clk 0:03:01.8]} 5...
d6 {[%clk 0:03:02.3]} 6. Be3 {[%clk 0:03:02.3]} 6... c5 {[%clk 0:03:02]} 7. d5
{[%clk 0:03:00.8]} 7... b5 {[%clk 0:03:02]} 8. cxb5 {[%clk 0:02:55.6]} 8... a6
{[%clk 0:03:01.2]} 9. a4 {[%clk 0:02:52.9]} 9... Qa5 {[%clk 0:02:56.8]} 10. f3
{[%clk 0:02:28.3]} 10... axb5 {[%clk 0:02:52.3]} 11. Bxb5 {[%clk 0:02:29.2]}
11... Ba6 {[%clk 0:02:52]} 12. Kf2 {[%clk 0:02:25.1]} 12... Bxb5 {[%clk
0:01:24.8]} 13. Nxb5 {[%clk 0:02:26]} 13... Na6 {[%clk 0:01:24.6]} 14. Ne2
{[%clk 0:02:22.5]} 14... Nc7 {[%clk 0:01:24.4]} 15. Nec3 {[%clk 0:01:45.6]}
15... Rfb8 {[%clk 0:01:18.4]} 16. Nxc7 {[%clk 0:01:40.8]} 16... Rxb2+ {[%clk
0:01:19.3]} 17. Ne2 {[%clk 0:01:23.4]} 17... Qxc7 {[%clk 0:01:13.2]} 18. Qc1
{[%clk 0:01:23.4]} 18... Rab8 {[%clk 0:00:48.9]} 19. a5 {[%clk 0:01:13.8]} 19...
Qa7 {[%clk 0:00:46]} 20. Re1 {[%clk 0:00:57]} 20... Nd7 {[%clk 0:00:38.6]} 21.
Qd1 {[%clk 0:00:15.9]} 21... Ne5 {[%clk 0:00:35.1]} 22. Kf1 {[%clk 0:00:14.1]}
22... Qa6 {[%clk 0:00:32.3]} 23. Kg1 {[%clk 0:00:08.7]} 23... Nd3 {[%clk
0:00:31.6]} 24. Rf1 {[%clk 0:00:08.5]} 24... Nb4 {[%clk 0:00:31.1]} 25. Ng3
{[%clk 0:00:05]} 25... Nc2 {[%clk 0:00:30.2]} 26. Bf2 {[%clk 0:00:01.6]} 26...
Nxa1 {[%clk 0:00:30]} 27. Qxa1 {[%clk 0:00:02.5]} 27... Rxf2 {[%clk 0:00:28.9]}
28. Qxg7+ {[%clk 0:00:02.1]} 28... Kxg7 {[%clk 0:00:29]} 29. Rxf2 {[%clk
0:00:03]} 29... Qxa5 {[%clk 0:00:29.5]} 30. Rf1 {[%clk 0:00:03.9]} 30... Rb2
{[%clk 0:00:29.3]} 31. Rf2 {[%clk 0:00:04.8]} 31... Qa1+ {[%clk 0:00:28.9]} 32.
Rf1 {[%clk 0:00:05.7]} 32... Rb1 {[%clk 0:00:28.9]} 33. Rxb1 {[%clk 0:00:05.2]}
33... Qxb1+ {[%clk 0:00:28.7]} 34. Kf2 {[%clk 0:00:06.1]} 34... c4 {[%clk
0:00:29.2]} 35. Ne2 {[%clk 0:00:07]} 35... Qd3 {[%clk 0:00:28.8]} 0-1